bitfinex/quotes_BTCUSD_20250211
["timestamp","ask_amount","ask_price","bid_price","bid_amount"]
[1739262883098,0.123814,98369.0,98368.0,0.32744401]
[1739262887728,0.1239206,98369.0,98368.0,0.32744401]
[1739262888323,0.1139206,98369.0,98368.0,0.32744401]
[1739262888714,0.1139206,98369.0,98368.0,0.30760308]
[1739262889606,0.1139206,98369.0,98368.0,0.29260308]
[1739262889981,0.1139206,98369.0,98368.0,0.28560308]
[1739262890189,0.1139206,98369.0,98368.0,0.30660308]
[1739262890542,0.1139206,98369.0,98368.0,0.29260308]
[1739262890827,0.1139206,98369.0,98368.0,0.30660308]
[1739262894528,0.1139206,98369.0,98368.0,0.29960308]
[1739262895310,0.1139206,98369.0,98368.0,0.30660308]
[1739262895487,0.1139206,98369.0,98368.0,0.29260308]
[1739262895694,0.1139206,98369.0,98368.0,0.30660308]
[1739262896192,0.1139206,98369.0,98368.0,0.29260308]
[1739262896548,0.1139206,98369.0,98368.0,0.30060308]
[1739262896955,0.1139206,98369.0,98368.0,0.30760308]
[1739262897389,0.1139206,98369.0,98368.0,0.28460308]
[1739262897747,0.1139206,98369.0,98368.0,0.12511508]
[1739262898160,0.1139206,98369.0,98368.0,0.15511508]
[1739262898541,0.1139206,98369.0,98368.0,0.13311508]
[1739262898713,0.1139206,98369.0,98368.0,0.14811508]
[1739262898940,0.1139206,98369.0,98368.0,0.14050365]
[1739262899263,0.1139206,98369.0,98368.0,0.12550365]
[1739262899469,0.1139206,98369.0,98368.0,0.13150365]
[1739262899838,0.2664076,98369.0,98368.0,0.13850365]
[1739262900049,0.2664076,98369.0,98368.0,0.12550365]
[1739262900338,0.2664076,98369.0,98368.0,0.12650365]
[1739262900476,0.2664076,98369.0,98368.0,0.13050365]
[1739262900681,0.2664076,98369.0,98368.0,0.12650365]
[1739262901043,0.2664076,98369.0,98368.0,0.006]
[1739262901709,0.2664076,98369.0,98368.0,0.005]
[1739262902118,0.2664076,98369.0,98368.0,0.009]
[1739262902548,0.2664076,98369.0,98368.0,0.005]
[1739262902745,0.2664076,98369.0,98365.0,0.023]
[1739262902943,0.283493,98365.0,98363.0,0.00022386]
[1739262903142,0.131,98364.0,98363.0,0.00022386]
[1739262904265,0.131,98364.0,98363.0,0.00522386]
[1739262906008,0.131,98364.0,98363.0,0.01022386]
[1739262906369,0.131,98364.0,98363.0,0.00522386]
[1739262906565,0.131,98364.0,98363.0,0.00022386]
[1739262906801,0.132,98364.0,98363.0,0.00022386]
[1739262907038,0.132,98364.0,98363.0,0.00222386]
[1739262907216,0.132,98364.0,98363.0,0.00022386]
[1739262907423,0.132,98364.0,98363.0,0.00222386]
[1739262908007,0.284494,98364.0,98363.0,0.00222386]
[1739262908422,0.283494,98364.0,98363.0,0.00222386]
[1739262908656,0.284494,98364.0,98363.0,0.00222386]
[1739262910375,0.434494,98364.0,98363.0,0.00222386]
[1739262910833,0.434494,98364.0,98363.0,0.00022386]
[1739262911539,0.433494,98364.0,98363.0,0.00022386]
[1739262911687,0.434494,98364.0,98363.0,0.00222386]
[1739262912444,0.433494,98364.0,98363.0,0.00222386]
[1739262912679,0.434494,98364.0,98363.0,0.00222386]
[1739262913088,0.434494,98364.0,98363.0,0.00022386]
[1739262913922,0.434494,98364.0,98363.0,0.00222386]
[1739262924379,0.353294,98364.0,98363.0,0.00222386]
[1739262924596,0.0508,98364.0,98363.0,0.12772751]
[1739262924803,0.001,98364.0,98363.0,0.28022351]
[1739262925206,0.001,98364.0,98363.0,0.12772751]
[1739262925903,0.001,98364.0,98363.0,0.28022351]
[1739262928137,0.001,98364.0,98363.0,0.28783788]
[1739262932458,0.001,98364.0,98363.0,0.36343788]
[1739262933289,0.001,98364.0,98363.0,0.36143788]
[1739262933498,0.00098572,98368.0,98367.0,0.15249]
[1739262933707,0.0001066,98369.0,98368.0,0.152488]
[1739262934021,0.0001066,98369.0,98368.0,0.27799165]
[1739262934437,0.0001066,98369.0,98368.0,0.28560602]
[1739262936298,0.0001066,98369.0,98368.0,0.29060602]
[1739262936496,0.0001066,98369.0,98368.0,0.28560602]
[1739262937176,0.0001066,98369.0,98368.0,0.28599165]
[1739262937578,0.0001066,98369.0,98368.0,0.28499165]
[1739262937973,0.0001066,98369.0,98368.0,0.29799165]
[1739262938796,0.0001066,98369.0,98368.0,0.29259679]
[1739262939000,0.0001066,98369.0,98368.0,0.30559679]
[1739262940225,0.0001066,98369.0,98368.0,0.29859679]
[1739262940459,0.0001066,98369.0,98368.0,0.30559679]
[1739262946067,0.0001066,98369.0,98368.0,0.31622796]
[1739262950454,0.0001066,98369.0,98368.0,0.30559679]
[1739262958562,0.0001066,98369.0,98368.0,0.30582044]
[1739262964418,0.0001066,98369.0,98368.0,0.33630095]
[1739262967980,0.0001066,98369.0,98368.0,0.30582044]
[1739262969213,0.0001066,98369.0,98368.0,0.27915377]
[1739262969803,0.0001066,98369.0,98368.0,0.30965046]
[1739262971511,0.0001066,98369.0,98368.0,0.27915377]
[1739262972332,0.0001066,98369.0,98368.0,0.27154863]
[1739262972942,0.0001066,98369.0,98368.0,0.27917461]
[1739262975427,0.0001066,98369.0,98368.0,0.27917461]
[1739262976159,0.0001066,98369.0,98368.0,0.60077461]
[1739262976665,0.0001066,98369.0,98368.0,0.63128308]
[1739262980880,0.0001066,98369.0,98368.0,0.66306301]
[1739262981053,0.0001066,98369.0,98368.0,0.74966301]
[1739262981256,1e-06,98373.0,98371.0,0.15]
[1739262981470,1e-06,98373.0,98372.0,1.41308185]
[1739262981704,1e-06,98373.0,98372.0,1.41206558]
[1739262981890,1e-06,98373.0,98372.0,2.91206558]
[1739262982454,0.01062639,98407.0,98391.0,0.152452]
[1739262982654,0.00023915,98392.0,98391.0,0.27795565]
[1739262983092,0.00023915,98392.0,98391.0,0.30841867]
[1739262983925,0.00023915,98392.0,98391.0,0.31541867]
[1739262984143,0.00023915,98392.0,98391.0,0.30841867]
[1739262984680,0.00023915,98392.0,98391.0,0.31604465]
[1739262985318,0.00023915,98392.0,98391.0,0.32904465]
[1739262985740,0.00023915,98392.0,98391.0,0.33604465]
[1739262985967,0.00023915,98392.0,98391.0,0.29258163]
[1739262986114,0.00023915,98392.0,98391.0,0.30758163]
[1739262986317,0.00023915,98392.0,98391.0,0.29295565]
[1739262986775,0.00023915,98392.0,98391.0,0.30756128]
[1739262987117,0.00023915,98392.0,98391.0,0.33798383]
[1739262987744,0.00023915,98392.0,98391.0,0.35867941]
[1739262988643,0.00023915,98392.0,98391.0,0.32825686]
[1739263005907,0.00023915,98392.0,98391.0,0.64985686]
[1739263012329,0.00023915,98392.0,98391.0,0.64225123]
[1739263014311,0.00023915,98392.0,98391.0,0.64987513]
[1739263015533,0.00023915,98392.0,98391.0,0.68163753]
[1739263016090,0.00023915,98392.0,98391.0,0.64987513]
[1739263016291,0.00023915,98392.0,98391.0,0.68163795]
[1739263022687,0.00023915,98392.0,98391.0,0.62687513]
[1739263023319,0.04803915,98392.0,98391.0,0.60617955]
[1739263023509,0.04803915,98392.0,98391.0,0.62917955]
[1739263028561,0.00023915,98392.0,98391.0,0.62917955]
[1739263029616,0.00023915,98392.0,98391.0,0.30757955]
[1739263031819,0.00023915,98392.0,98391.0,0.33934388]
[1739263038364,0.00023915,98392.0,98391.0,0.32434388]
[1739263038783,0.00023915,98392.0,98391.0,0.33934388]
[1739263039109,0.00023915,98392.0,98391.0,0.33234388]
[1739263039308,0.00023915,98392.0,98391.0,0.33934388]
[1739263041515,0.00023915,98392.0,98391.0,0.66094388]
[1739263043500,0.00023915,98392.0,98391.0,0.64594388]
[1739263043716,0.00023915,98392.0,98391.0,0.63894388]
[1739263043911,0.00023915,98392.0,98391.0,0.64594388]
[1739263044911,0.00023915,98392.0,98391.0,0.66094388]
[1739263050553,0.00023915,98392.0,98391.0,0.46684388]
[1739263051142,0.00023915,98392.0,98391.0,1.91754388]
[1739263051699,0.00023915,98392.0,98391.0,0.41754388]
[1739263052938,0.00023915,98392.0,98391.0,0.33934388]
[1739263053272,0.00023915,98392.0,98391.0,0.33234388]
[1739263053632,0.00023915,98392.0,98391.0,0.33934388]
[1739263053827,0.00023915,98392.0,98391.0,0.33234388]
[1739263054844,0.00023915,98392.0,98391.0,0.31734388]
[1739263056749,0.00023915,98392.0,98391.0,0.63894388]
[1739263056933,0.00023915,98392.0,98391.0,0.64738388]
[1739263057149,0.00023915,98392.0,98391.0,0.66643171]
[1739263059206,0.00023915,98392.0,98391.0,0.66543171]
[1739263059694,0.00023915,98392.0,98391.0,0.68743171]
[1739263063848,0.00023915,98392.0,98391.0,0.92089171]
[1739263064056,0.00023915,98392.0,98391.0,2.42829171]
[1739263064787,0.00023915,98392.0,98391.0,0.91329171]
[1739263065230,0.00023915,98392.0,98391.0,0.91429171]
[1739263065586,0.00023915,98392.0,98391.0,0.91329171]
[1739263066072,0.00023915,98392.0,98391.0,0.90729171]
[1739263066280,0.00023915,98392.0,98391.0,0.90829171]
[1739263066687,0.00023915,98392.0,98391.0,1.11979171]
[1739263066917,0.00023915,98392.0,98391.0,1.11079171]
[1739263067099,0.00023915,98392.0,98391.0,1.12079171]
[1739263067255,0.00023915,98392.0,98391.0,1.11079171]
[1739263067477,0.00023915,98392.0,98391.0,1.12079171]
[1739263067679,0.00023915,98392.0,98391.0,1.11079171]
[1739263067878,0.00023915,98392.0,98391.0,1.12079171]
[1739263068079,0.00023915,98392.0,98391.0,1.02989171]
[1739263068284,0.00023915,98392.0,98391.0,1.03989171]
[1739263068599,0.00023915,98392.0,98391.0,0.50579171]
[1739263070577,0.0009855,98404.0,98391.0,0.35333971]
[1739263070794,0.0001066,98405.0,98404.0,0.023]
[1739263070982,0.0001066,98405.0,98404.0,0.30969998]
[1739263071388,0.0001066,98405.0,98404.0,0.32874781]
[1739263071628,0.0001066,98405.0,98404.0,0.29698348]
[1739263072391,0.0001066,98405.0,98404.0,0.30460738]
[1739263072601,0.0001066,98405.0,98404.0,0.32660738]
[1739263072801,0.0001066,98405.0,98404.0,0.35834835]
[1739263073219,0.0001066,98405.0,98404.0,0.32660738]
[1739263074726,0.0001066,98405.0,98404.0,0.34661654]
[1739263082139,0.1301066,98405.0,98404.0,0.30360738]
[1739263082599,0.1301066,98405.0,98404.0,0.32660738]
[1739263083346,0.1301066,98405.0,98404.0,0.31960738]
[1739263083546,0.1301066,98405.0,98404.0,0.31160738]
[1739263083860,0.1301066,98405.0,98404.0,0.32560738]
[1739263084301,0.1301066,98405.0,98404.0,0.31160738]
[1739263084706,0.1301066,98405.0,98404.0,0.32560738]
[1739263085101,0.1301066,98405.0,98404.0,0.17317538]
[1739263085391,0.1301066,98405.0,98404.0,0.32560738]
[1739263086048,0.1301066,98405.0,98404.0,0.41004001]
[1739263086259,0.1301066,98405.0,98404.0,0.41704001]
[1739263086667,0.1301066,98405.0,98404.0,0.41004001]
[1739263086879,0.1301066,98405.0,98404.0,0.41704001]
[1739263087853,0.1301066,98405.0,98404.0,0.40304001]
[1739263088052,0.1301066,98405.0,98404.0,0.41704001]
[1739263088247,0.1301066,98405.0,98404.0,0.26460801]
[1739263088606,0.1301066,98405.0,98404.0,0.25060801]
[1739263088809,0.1301066,98405.0,98404.0,0.26460801]
[1739263089030,0.1301066,98405.0,98404.0,0.17317538]
[1739263089399,0.1301066,98405.0,98404.0,0.31160738]
[1739263089650,0.1301066,98405.0,98404.0,0.30460738]
[1739263089803,0.1301066,98405.0,98404.0,0.31860738]
[1739263090015,0.1301066,98405.0,98404.0,0.32560738]
[1739263090982,0.1301066,98405.0,98404.0,0.32560738]
[1739263091297,0.1301066,98405.0,98404.0,0.31160738]
[1739263091505,0.1301066,98405.0,98404.0,0.32560738]
[1739263091779,0.1301066,98405.0,98404.0,0.31860738]
[1739263091981,0.1301066,98405.0,98404.0,0.32560738]
[1739263092181,0.1301066,98405.0,98404.0,0.31160738]
[1739263092417,0.1301066,98405.0,98404.0,0.32660738]
[1739263095315,0.1301066,98405.0,98404.0,0.31898348]
[1739263095541,0.1301066,98405.0,98404.0,0.29993565]
[1739263095814,0.1301066,98405.0,98404.0,0.30755036]
[1739263096243,0.1301066,98405.0,98404.0,0.32658713]
[1739263103224,0.0488066,98405.0,98404.0,0.32658713]
[1739263115607,0.0001066,98405.0,98404.0,0.32658713]
[1739263121534,0.0001066,98405.0,98404.0,0.32806713]
[1739263122135,1.806e-05,98405.0,98404.0,0.32806713]
[1739263125452,1.806e-05,98405.0,98404.0,0.22556348]
[1739263126386,1.806e-05,98405.0,98404.0,0.32806713]
[1739263126958,1.806e-05,98405.0,98404.0,0.30141565]
[1739263127801,1.806e-05,98405.0,98404.0,0.3281137]
[1739263128752,1.806e-05,98405.0,98404.0,0.22561005]
[1739263128976,1.806e-05,98405.0,98404.0,0.3281137]
[1739263134207,1.806e-05,98405.0,98404.0,0.32833756]
[1739263139350,1.806e-05,98405.0,98404.0,0.30926752]
[1739263140650,1.806e-05,98405.0,98404.0,0.30163951]
[1739263141322,1.806e-05,98405.0,98404.0,0.29463951]
[1739263141727,1.806e-05,98405.0,98404.0,0.30163951]
[1739263142560,1.806e-05,98405.0,98404.0,0.28663951]
[1739263142935,1.806e-05,98405.0,98404.0,0.30163951]
[1739263143140,1.806e-05,98405.0,98404.0,0.30926742]
[1739263144309,1.806e-05,98405.0,98404.0,0.29426742]
[1739263144473,1.806e-05,98405.0,98404.0,0.28726742]
[1739263144691,1.806e-05,98405.0,98404.0,0.29426742]
[1739263146357,1.806e-05,98405.0,98404.0,0.30926742]
[1739263148141,1.806e-05,98405.0,98404.0,0.40079873]
[1739263153214,1.806e-05,98405.0,98404.0,0.41986319]
[1739263154164,1.806e-05,98405.0,98404.0,0.32833188]
[1739263156176,1.806e-05,98405.0,98404.0,0.30926742]
[1739263166491,1.806e-05,98405.0,98404.0,0.30163951]
[1739263168855,1.806e-05,98405.0,98404.0,0.14920751]
[1739263169053,1.806e-05,98405.0,98404.0,0.30926305]
[1739263173872,0.15244906,98405.0,98404.0,0.13383105]
[1739263174076,0.23214906,98405.0,98404.0,0.13383105]
[1739263174336,0.27754906,98405.0,98404.0,0.13383105]
[1739263176226,0.27754906,98405.0,98404.0,0.12620751]
[1739263178661,0.27754906,98405.0,98404.0,0.02370386]
[1739263179078,0.42754906,98405.0,98404.0,0.02370386]
[1739263179576,0.42754906,98405.0,98404.0,0.01670386]
[1739263179985,0.42754906,98405.0,98404.0,0.01770386]
[1739263180185,0.42754906,98405.0,98404.0,0.00170386]
[1739263180399,0.42954906,98405.0,98404.0,0.00170386]
[1739263180620,0.95685636,98405.0,98404.0,0.00170386]
[1739263180823,0.92985636,98405.0,98404.0,0.00170386]
[1739263181026,0.302437,98401.0,98400.0,0.09148262]
[1739263181228,0.432637,98401.0,98400.0,0.09148262]
[1739263182063,0.432646,98395.0,98394.0,0.09148262]
[1739263183347,0.432646,98395.0,98394.0,0.09248262]
[1739263184164,0.434646,98395.0,98394.0,0.09248262]
[1739263184568,0.43165666,98395.0,98394.0,0.09248262]
[1739263184773,0.42965666,98395.0,98394.0,0.001]
[1739263185188,0.302449,98393.0,98392.0,0.00022386]
[1739263186752,0.302449,98393.0,98392.0,0.00222386]
[1739263186965,0.30375687,98393.0,98392.0,0.00222386]
[1739263191700,0.15386347,98393.0,98392.0,0.00222386]
[1739263203723,0.0021066,98393.0,98392.0,0.00222386]
[1739263203924,0.1545556,98393.0,98392.0,0.00222386]
[1739263212205,0.0021066,98393.0,98392.0,0.00222386]
[1739263212398,0.1545556,98393.0,98392.0,0.00222386]
[1739263212561,0.2298556,98393.0,98392.0,0.00222386]
[1739263212782,0.2298556,98393.0,98392.0,0.04035141]
[1739263213578,0.24014708,98393.0,98392.0,0.04035141]
[1739263214078,0.28834708,98393.0,98392.0,0.04035141]
[1739263214301,0.28834708,98393.0,98392.0,0.00222386]
[1739263215092,0.35783389,98393.0,98392.0,0.00222386]
[1739263215289,0.28834708,98393.0,98392.0,0.00222386]
[1739263221781,0.2780556,98393.0,98392.0,0.00222386]
[1739263222874,0.2780556,98393.0,98392.0,0.04034498]
[1739263224948,0.2027556,98393.0,98392.0,0.04034498]
[1739263225151,0.0503066,98393.0,98392.0,0.04034498]
[1739263225357,0.0021066,98393.0,98392.0,0.04034498]
[1739263225775,0.0021066,98393.0,98392.0,0.00222386]
[1739263234284,0.1545556,98393.0,98392.0,0.00222386]
[1739263234665,0.1545556,98393.0,98392.0,0.10472751]
[1739263234666,0.0021066,98393.0,98392.0,0.10472751]
[1739263235288,0.0021066,98393.0,98392.0,0.11235104]
[1739263235504,0.0021066,98393.0,98392.0,0.11035104]
[1739263235926,0.0021066,98393.0,98392.0,0.11235104]
[1739263236063,0.0021066,98393.0,98392.0,0.11035104]
[1739263236265,0.0001066,98393.0,98392.0,0.11035104]
[1739263236469,0.0001066,98393.0,98392.0,0.11435104]
[1739263236789,0.0021066,98393.0,98392.0,0.11435104]
[1739263237176,0.0001066,98393.0,98392.0,0.11435104]
[1739263237518,0.0001066,98393.0,98392.0,0.11735104]
[1739263238294,0.0001066,98393.0,98392.0,0.29280204]
[1739263238497,0.0001066,98393.0,98392.0,0.37210204]
[1739263241735,0.0001066,98393.0,98392.0,0.38252474]
[1739263244111,0.0001066,98393.0,98392.0,0.37210204]
[1739263246488,0.0001066,98393.0,98392.0,0.21965104]
[1739263247033,0.0001066,98393.0,98392.0,0.14035104]
[1739263247237,0.0001066,98393.0,98392.0,0.29280204]
[1739263249579,0.0001066,98393.0,98392.0,0.37210204]
[1739263251009,0.0001066,98393.0,98392.0,0.26959839]
[1739263251212,0.0001066,98393.0,98392.0,0.37210204]
[1739263261762,0.0001066,98393.0,98392.0,0.36810204]
[1739263261970,0.0001066,98393.0,98392.0,0.37410204]
[1739263262364,0.0001066,98393.0,98392.0,0.37110204]
[1739263262571,0.0001066,98393.0,98392.0,0.37910204]
[1739263268303,0.0001066,98393.0,98392.0,0.37310204]
[1739263268532,0.0001066,98393.0,98392.0,0.36510204]
[1739263268668,0.0001066,98393.0,98392.0,0.37210204]
[1739263268892,0.0001066,98393.0,98392.0,0.38710204]
[1739263271788,0.0001066,98393.0,98392.0,0.70870204]
[1739263273326,0.0001066,98393.0,98392.0,0.80018466]
[1739263275675,0.0001066,98393.0,98392.0,0.83192141]
[1739263276017,0.0001066,98393.0,98392.0,0.68670204]
[1739263276223,0.0001066,98393.0,98392.0,0.69370204]
[1739263276437,0.0001066,98393.0,98392.0,0.70870204]
[1739263278644,0.0001066,98393.0,98392.0,0.71822394]
[1739263283871,0.0002,98409.0,98406.0,0.152429]
[1739263284101,0.00025835,98409.0,98407.0,0.12550365]
[1739263284875,0.00025835,98409.0,98408.0,0.03062353]
[1739263285117,0.00025835,98409.0,98408.0,0.14264908]
[1739263286250,0.00025835,98409.0,98408.0,0.14964908]
[1739263287502,0.00025835,98409.0,98408.0,0.16264908]
[1739263290187,0.04695835,98409.0,98408.0,0.16264908]
[1739263294108,0.04706495,98409.0,98408.0,0.16264908]
[1739263297369,0.04706495,98409.0,98408.0,0.13964908]
[1739263314386,0.04662479,98409.0,98408.0,0.13964908]
[1739263315336,0.04662479,98409.0,98408.0,0.23117279]
[1739263315748,0.04384254,98409.0,98408.0,0.23117279]
[1739263316916,0.0001066,98409.0,98408.0,0.23117279]
[1739263318908,0.0001066,98409.0,98408.0,0.13964908]
[1739263323248,0.0001066,98409.0,98408.0,0.23117279]
[1739263324639,0.0001066,98409.0,98408.0,0.38359879]
[1739263324846,0.0001066,98409.0,98408.0,0.40659879]
[1739263325046,0.0783,98431.0,98408.0,0.40659879]
[1739263325047,0.0469,98458.0,98408.0,0.45067279]
[1739263325251,0.00054832,98433.0,98432.0,0.023]
[1739263325468,0.00054832,98433.0,98432.0,0.27789265]
[1739263326386,0.00054832,98433.0,98432.0,0.28741455]
[1739263326603,0.00054832,98433.0,98432.0,0.29503808]
[1739263326769,0.00054832,98433.0,98432.0,0.31577305]
[1739263327566,0.00054832,98433.0,98432.0,0.32077305]
[1739263327764,0.00054832,98433.0,98432.0,0.32477305]
[1739263331622,0.00054832,98433.0,98432.0,0.12864908]
[1739263334942,0.00054832,98433.0,98432.0,0.12102555]
[1739263335586,0.00054832,98433.0,98432.0,0.0185219]
[1739263335962,0.07884832,98433.0,98432.0,0.0185219]
[1739263336224,0.23123532,98433.0,98432.0,0.0185219]
[1739263336556,0.23123532,98433.0,98432.0,0.009]
[1739263341551,0.152394,98429.0,98419.0,0.0171128]
[1739263341876,0.152394,98429.0,98420.0,0.10250365]
[1739263342234,0.203188,98431.0,98420.0,0.10250365]
[1739263342642,0.152395,98429.0,98420.0,0.10250365]
[1739263343675,0.07884832,98433.0,98420.0,0.10250365]
[1739263343676,0.152393,98430.0,98420.0,0.10250365]
[1739263344405,0.152393,98430.0,98421.0,0.00949576]
[1739263344560,0.152393,98430.0,98422.0,0.10250365]
[1739263345565,0.152393,98430.0,98423.0,0.00949576]
[1739263345805,0.152393,98430.0,98424.0,0.10250365]
[1739263346385,0.15239,98432.0,98424.0,0.10250365]
[1739263346590,0.07884832,98433.0,98424.0,0.10250365]
[1739263346845,0.152392,98430.0,98424.0,0.10250365]
[1739263348423,0.28203332,98433.0,98424.0,0.10550365]
[1739263348671,0.152392,98430.0,98424.0,0.10550365]
[1739263348848,0.15239,98432.0,98424.0,0.10250365]
[1739263349033,0.00054832,98433.0,98424.0,0.10250365]
[1739263349235,0.00054832,98433.0,98424.0,0.11150365]
[1739263349431,0.00054832,98433.0,98424.0,0.31470465]
[1739263349821,0.00054832,98433.0,98424.0,0.25990365]
[1739263350019,0.00054832,98433.0,98424.0,0.25490365]
[1739263350222,0.00054832,98433.0,98425.0,0.00949846]
[1739263350460,0.00054832,98433.0,98426.0,0.10250365]
[1739263351424,0.00054832,98433.0,98427.0,0.00949846]
[1739263351630,0.00054832,98433.0,98428.0,0.10250365]
[1739263352218,0.00054832,98433.0,98429.0,0.00949846]
[1739263352486,0.00054832,98433.0,98430.0,0.10250365]
[1739263353483,0.00054832,98433.0,98431.0,0.00949846]
[1739263353704,0.00054832,98433.0,98431.0,0.11200211]
[1739263354467,0.00054832,98433.0,98431.0,0.10250365]
[1739263355675,0.15293632,98433.0,98431.0,0.10250365]
[1739263355921,0.15293632,98433.0,98431.0,0.10650365]
[1739263356565,0.20373232,98433.0,98420.0,0.08137524]
[1739263356767,0.08,98432.0,98431.0,0.005]
[1739263356968,0.08,98432.0,98421.0,0.10250365]
[1739263357244,0.23239,98432.0,98431.0,0.002]
[1739263357597,0.23239,98432.0,98422.0,0.01711591]
[1739263357799,0.23239,98432.0,98423.0,0.10250365]
[1739263358512,0.23239,98432.0,98424.0,0.00760707]
[1739263358731,0.23239,98432.0,98425.0,0.11201249]
[1739263358938,0.23239,98432.0,98431.0,0.004]
[1739263359255,0.152391,98431.0,98425.0,0.11201249]
[1739263359755,0.152391,98431.0,98426.0,0.00760707]
[1739263360544,0.152391,98431.0,98426.0,0.01711591]
[1739263360990,0.152391,98431.0,98427.0,0.00760707]
[1739263361130,0.152395,98429.0,98427.0,0.00760707]
[1739263361512,0.152391,98431.0,98427.0,0.00760707]
[1739263362298,0.08,98432.0,98428.0,0.00950884]
[1739263362467,0.23239,98432.0,98428.0,0.01711591]
[1739263363053,0.23239,98432.0,98429.0,0.00760707]
[1739263363261,0.00054832,98433.0,98429.0,0.00760707]
[1739263363467,0.152389,98432.0,98429.0,0.00760707]
[1739263363674,0.152389,98432.0,98430.0,0.00950884]
[1739263363875,0.00054832,98433.0,98431.0,0.10250365]
[1739263364077,0.00054832,98433.0,98431.0,0.11011072]
[1739263364903,0.00054832,98433.0,98432.0,0.02474827]
[1739263365293,0.00054832,98433.0,98432.0,0.03235534]
[1739263366089,0.00054832,98433.0,98432.0,0.01711591]
[1739263367413,0.00054832,98433.0,98432.0,0.02111591]
[1739263367862,0.12982832,98438.0,98432.0,0.02311591]
[1739263368117,0.1299001,98438.0,98432.0,0.02311591]
[1739263368395,7.178e-05,98438.0,98433.0,0.00760707]
[1739263368596,7.178e-05,98438.0,98433.0,0.03235743]
[1739263369007,0.15245278,98438.0,98433.0,0.03235743]
[1739263369306,0.152381,98437.0,98433.0,0.03235743]
[1739263369714,0.152381,98437.0,98434.0,0.02475036]
[1739263369939,0.152381,98437.0,98434.0,0.03235743]
[1739263370735,0.152384,98436.0,98434.0,0.03235743]
[1739263370950,0.152384,98436.0,98435.0,0.02475036]
[1739263371379,0.152384,98436.0,98435.0,0.03235743]
[1739263371753,0.15245278,98438.0,98435.0,0.06283968]
[1739263371967,0.15245278,98438.0,98435.0,0.04759816]
[1739263372560,0.152382,98437.0,98436.0,0.00760707]
[1739263373115,0.152382,98437.0,98436.0,0.04759816]
[1739263374065,0.152382,98437.0,98436.0,0.05059816]
[1739263380276,0.233882,98437.0,98436.0,0.05059816]
[1739263380869,0.281882,98437.0,98436.0,0.05059816]
[1739263381069,0.281882,98437.0,98436.0,0.03048225]
[1739263381070,0.431882,98437.0,98436.0,0.03048225]
[1739263381271,0.431882,98437.0,98436.0,0.03348225]
[1739263381486,0.2795,98437.0,98432.0,0.00022365]
[1739263381692,0.431887,98433.0,98432.0,0.00022365]
[1739263384098,0.431887,98433.0,98432.0,0.00122365]
[1739263384459,0.431887,98433.0,98432.0,0.00022365]
[1739263384870,0.431887,98433.0,98432.0,0.00122365]
[1739263387232,0.44204173,98433.0,98432.0,0.00122365]
[1739263387439,0.44204173,98433.0,98432.0,0.00022365]
[1739263388407,0.431887,98433.0,98432.0,0.00022365]
[1739263393221,0.350387,98433.0,98432.0,0.00022365]
[1739263393358,0.302387,98433.0,98432.0,0.00022365]
[1739263402070,0.30189228,98433.0,98432.0,0.00022365]
[1739263405071,0.30189228,98433.0,98432.0,0.00022365]
[1739263405834,0.30189228,98433.0,98432.0,0.00122365]
[1739263406190,0.30189228,98433.0,98432.0,0.00022365]
[1739263406391,0.30189228,98433.0,98432.0,0.00122365]
[1739263409212,0.30189228,98433.0,98432.0,0.00222365]
[1739263409435,0.30189228,98433.0,98432.0,0.00022365]
[1739263409631,0.29846229,98433.0,98432.0,0.00022365]
[1739263409907,0.29846229,98433.0,98432.0,0.00122365]
[1739263422662,0.29856889,98433.0,98432.0,0.00122365]
[1739263425840,0.40208622,98433.0,98432.0,0.00122365]
[1739263427030,0.38016889,98433.0,98432.0,0.00122365]
[1739263430068,0.42886889,98433.0,98432.0,0.00122365]
[1739263454208,0.29856889,98433.0,98432.0,0.00122365]
[1739263454437,0.29782232,98433.0,98432.0,0.00122365]
[1739263465108,0.32917814,98433.0,98432.0,0.00122365]
[1739263466042,0.32917814,98433.0,98432.0,0.00222365]
[1739263466590,0.41057814,98433.0,98432.0,0.00122365]
[1739263466792,0.67218544,98433.0,98432.0,0.00122365]
[1739263467001,0.68218544,98433.0,98432.0,0.00122365]
[1739263467344,0.68218544,98433.0,98432.0,0.00022365]
[1739263467733,0.68418544,98433.0,98432.0,0.00122365]
[1739263468209,0.68218544,98433.0,98432.0,0.00022365]
[1739263468387,0.68718544,98433.0,98432.0,0.00122365]
[1739263472338,0.58419558,98433.0,98432.0,0.00122365]
[1739263474699,0.90649558,98433.0,98432.0,6.5e-07]
[1739263477569,0.90649558,98433.0,98432.0,6.5e-07]
[1739263480200,0.90649558,98433.0,98432.0,5.1e-07]
[1739263480629,0.91389558,98433.0,98432.0,5.1e-07]
[1739263481408,1.01639923,98433.0,98432.0,5.1e-07]
[1739263484474,1.0124533,98433.0,98432.0,5.1e-07]
[1739263487845,1.0124533,98433.0,98432.0,5.1e-07]
[1739263492597,1.0074533,98433.0,98432.0,5.1e-07]
[1739263494088,1.0244533,98433.0,98432.0,5.1e-07]
[1739263494433,1.0244533,98433.0,98412.0,0.08137524]
[1739263494434,0.01,98416.0,98412.0,0.08137524]
[1739263494609,0.162418,98413.0,98412.0,0.08137524]
[1739263494795,0.302423,98410.0,98409.0,0.00022386]
[1739263494988,0.40492665,98410.0,98409.0,0.00022386]
[1739263496175,0.4478445,98410.0,98409.0,0.00022386]
[1739263497910,0.4508445,98410.0,98409.0,0.00022386]
[1739263499344,0.46112914,98410.0,98409.0,0.00022386]
[1739263501064,0.48192699,98410.0,98409.0,0.00022386]
[1739263502256,0.52325344,98410.0,98409.0,0.00022386]
[1739263503285,0.52025344,98410.0,98409.0,0.00022386]
[1739263503464,0.53425344,98410.0,98409.0,0.00022386]
[1739263503884,0.54425344,98410.0,98409.0,0.00022386]
[1739263504038,0.53325344,98410.0,98409.0,8.6e-07]
[1739263504244,0.54725344,98410.0,98409.0,8.6e-07]
[1739263504635,0.55025344,98410.0,98409.0,8.6e-07]
[1739263505548,0.50733559,98410.0,98409.0,8.6e-07]
[1739263507785,0.82963559,98410.0,98409.0,8.6e-07]
[1739263527178,0.82974219,98410.0,98409.0,8.6e-07]
[1739263529472,0.82974219,98410.0,98409.0,8.6e-07]
[1739263532082,0.82974219,98410.0,98408.0,7.2e-07]
[1739263532083,0.322425,98409.0,98408.0,7.2e-07]
[1739263532284,0.63905875,98409.0,98408.0,7.2e-07]
[1739263533302,0.65205875,98409.0,98408.0,7.2e-07]
[1739263534170,0.65505875,98409.0,98408.0,7.2e-07]
[1739263534613,0.70005875,98409.0,98408.0,7.2e-07]
[1739263535602,0.68705875,98409.0,98408.0,7.2e-07]
[1739263535866,0.70105875,98409.0,98408.0,7.2e-07]
[1739263536035,1.04635875,98409.0,98408.0,7.2e-07]
[1739263536258,0.322449,98393.0,98392.0,4.4e-07]
[1739263536436,0.7785791,98393.0,98392.0,4.4e-07]
[1739263537553,0.7785791,98393.0,98392.0,0.00044216]
[1739263537771,0.7795791,98393.0,98392.0,0.00044216]